Cogmind - Beta 14 @@@ ROGUE MODE // 2024.12.31 @ 22:34:41 Player: Jirybot Result: Destroyed by S-10 Pest with Light Assault Rifle Performance ------------- Evolutions (0) 0 Regions Visited (2) 400 Robots Destroyed (26) 130 Value Destroyed (803) 803 Prototype IDs (0) 0 Alien Tech Used (0) 0 Bonus (0) 0 TOTAL SCORE: 1333 Bonus ------- None Cogmind --------- Core Integrity 0/250 Matter 169/300 Energy 197/200 System Corruption 30% Temperature Cool (0) Movement Treading (240) Ox1 Location -10/Subcaves Parts ------- > --- POWER (1) -------- Subdweller Power Source > --- PROPULSION (2) --- Light Treads > --- UTILITY (2) ------ Large Storage Unit Signal Interpreter > --- WEAPON (2) ------- Subdweller Laser Battle Cannon > --- INVENTORY (15) --- Improved Ion Engine Improved Ion Engine Subdweller Monowheel Subdweller Monowheel Heat Sink Makeshift Targeting Computer Makeshift Light Armor Plating Scrap Shield Scrap Shield Fragment (49) Scrap Shield Fragment (46) Scrap Shield Fragment (45) Scrap Shield Fragment (45) Scrap Shield Fragment (45) Peak State ------------ > --- POWER ------------ Improved Ion Engine > --- PROPULSION ------- Light Treads Light Treads > --- UTILITY ---------- Large Storage Unit Signal Interpreter > --- WEAPON ----------- Subdweller Machine Gun Dirty Datajack > --- INVENTORY -------- Improved Ion Engine Compact Wheel Subdweller Monowheel Subdweller Monowheel Heat Sink Makeshift Targeting Computer ECM Suite Hardened Light Armor Plating Hardened Light Armor Plating Scrap Shield Fragment Scrap Shield Fragment Scrap Shield Fragment Scrap Shield Fragment Scrap Shield Fragment [Rating: 16] Favorites ----------- Power Subdweller Power Source Engine Subdweller Power Source Propulsion Light Treads Treads Light Treads Utility Signal Interpreter Storage Large Storage Unit Processor Signal Interpreter Weapon Light EM Pulse Cannon Energy Gun Subdweller Laser Energy Cannon Light EM Pulse Cannon Ballistic Gun Assault Rifle Ballistic Cannon Battle Cannon Special Melee Weapon Dirty Datajack Build | -11 -10 -10 ------- Run | Yrd Mat Sub Slots Evolved . | . . . Power . | . . . Propulsion . | . . . Utility . | . . . Weapon . | . . . Parts Attached 27 | 6 10 11 Power 6 | 1 2 3 Engine 6 | 1 2 3 Core . | . . . Reactor . | . . . Propulsion 6 | 2 3 1 Treads 6 | 2 3 1 Leg . | . . . Wheel . | . . . Hover . | . . . Flight . | . . . Utility 3 | 1 2 . Device . | . . . Storage 2 | 1 1 . Processor 1 | . 1 . Hackware . | . . . Protection . | . . . Artifact . | . . . Weapon 12 | 2 3 7 Energy Gun 3 | . 1 2 Energy Cannon 4 | . 2 2 Ballistic Gun 3 | 2 . 1 Ballistic Cannon 1 | . . 1 Launcher . | . . . Special Weapon . | . . . Impact Weapon . | . . . Slashing Weapon . | . . . Piercing Weapon . | . . . Special Melee Weapon 1 | . . 1 Unidentified Prototypes . | . . . Corrupted Parts 5 | . 2 3 System Corruption 30 | . 16 14 Parts Lost 6 | . 3 3 Power . | . . . Propulsion 3 | . 2 1 Utility . | . . . Weapon 3 | . 1 2 Highest Loss Streak 2 | . 2 2 To Critical Strikes . | . . . Average Slot Usage (%) 94 | . 93 94 Engine 13 | . 14 13 Treads 23 | . 25 22 Storage 14 | . 14 14 Processor 13 | . 10 14 Energy Gun 7 | . . 9 Energy Cannon 13 | . 10 14 Ballistic Gun 4 | . 16 1 Ballistic Cannon 1 | . . 1 Peak Build Rating 16 | 6 11 16 Average Rating 11 | 4 8 11 On Entrance 5 | . 6 11 Naked Turns . | . . . Heaviest Build 39 | 12 35 39 Greatest Support 40 | 40 40 40 Greatest Overweight (x) 6 | 1 6 1 Average Overweight (x) . | . . . Largest Inventory Capacity 15 | 8 15 15 Average Capacity 13 | 6 10 15 Most Carried 15 | 4 8 15 Average Carried 12 | 2 6 13 Final Capacity 15 | 8 15 15 Final Carried 14 | 4 8 14 Class Distribution -------------------- 54% | Scavenger-Mutant 45% | Mutant Dominant Class ---------------- Mutant | -10/Materials Scavenger-Mutant | -10/Subcaves Resources | -11 -10 -10 ----------- Run | Yrd Mat Sub Matter Collected 985 | 220 358 407 Remotely . | . . . Salvage Created 1230 | . 664 566 Parts 62 | . 34 28 Haulers Intercepted 2 | . 2 . Recyclers Shooed . | . . . Parts Field Recycled . | . . . Retrieved Matter . | . . . Parts Self-Destructed 8 | . . 8 Prevented 3 | . . 3 Kills | -11 -10 -10 ------- Run | Yrd Mat Sub Combat Hostiles Destroyed 21 | . 13 8 Guns 13 | . 10 3 Cannons 5 | . 2 3 AOE 1 | . 1 . Classes Destroyed 7 | . 5 2 Hauler 2 | . 2 . Mechanic 1 | . 1 . Watcher 2 | . 2 . Swarmer 3 | . 3 . Grunt 10 | . 10 . Sentry 1 | . . 1 Subdweller 7 | . . 7 Best Kill Streak 5 | . 5 2 Combat Bots Only 3 | . 3 2 Max Kills in Single Turn 1 | . 1 1 Gunslinging . | . . . Exploded 1 | . 1 . Melee . | . . . Uniques/NPCs Destroyed . | . . . Combat | -11 -10 -10 -------- Run | Yrd Mat Sub Hostile Shots Fired 114 | . 70 44 Missed 39 | . 21 18 Damage Taken 1255 | . 717 538 Core 255 | . 142 113 Absorbed by Shields . | . . . Core Remaining (%) 100 | 100 . . Volleys Fired 111 | . 52 59 Largest 2 | . 2 2 Hottest 136 | . 112 136 Shots Fired 209 | . 102 107 Gun 125 | . 80 45 Cannon 84 | . 22 62 Launcher . | . . . Special . | . . . Kinetic 96 | . 79 17 Thermal 45 | . 1 44 Explosive . | . . . Electromagnetic 68 | . 22 46 Robot Hit Streak 25 | . 11 25 Robot Miss Streak 3 | . 3 1 Penetration Max . | . . . Secondary Targets 2 | . 2 . Max Gunslinging Chain 1 | . 1 . Shots Hit Robots 112 | . 69 43 Core Hits 44 | . 28 16 Critical Kills . | . . . Critical Parts Destroyed . | . . . Critical Strikes . | . . . Melee Attacks . | . . . Impact . | . . . Slashing . | . . . Piercing . | . . . Sneak Attacks . | . . . Combat Hostiles . | . . . Follow-up Attacks . | . . . Damage Inflicted 2057 | . 1234 823 Guns 951 | . 683 268 Cannons 910 | . 355 555 Explosions 194 | . 194 . Melee . | . . . Ramming 2 | . 2 . Kinetic 769 | . 683 86 Thermal 455 | . 194 261 Explosive . | . . . Electromagnetic 831 | . 355 476 Impact . | . . . Slashing . | . . . Piercing . | . . . Highest Corruption 30 | . 16 30 Average Corruption 23 | . 15 24 Corruption Purged . | . . . Corruption Blocked . | . . . Effects 188 | . 15 173 Message Errors 44 | . 4 40 Matter Fused 50 | . 4 46 Heat Flow Errors 17 | . 1 16 Energy Discharges 21 | . . 21 Parts Rejected 1 | . 1 . Data Loss (minor) 22 | . 2 20 Data Loss (major) 7 | . 1 6 Misfires 10 | . . 10 Alerts 8 | . 1 7 Misdirections 2 | . 1 1 Weapon Failures 6 | . . 6 Overload Shots . | . . . Overflow Damage 34 | . 34 . Projectiles . | . . . Explosions 34 | . 34 . Melee . | . . . Knockbacks . | . . . Impact . | . . . Kinetic . | . . . Secondary . | . . . Self-Inflicted Damage 93 | . 93 . Shots 2 | . 2 . Rammed 2 | . 2 . Targets Rammed 2 | . 2 . Kicked . | . . . Crushed . | . . . Highest Temperature 294 | . 294 257 Average Temperature 81 | . 72 89 Received Heat Transfer 471 | . 363 108 Siege Activations . | . . . Robots Corrupted 3 | . 1 2 Combat Hostiles 2 | . . 2 Parts Fried 9 | . 3 6 Impact Corruptions . | . . . Robots Melted . | . . . Combat Hostiles . | . . . Parts Melted . | . . . Heat Transferred 486 | . 150 336 Parts Sabotaged . | . . . Parts Stolen . | . . . Parts Stripped . | . . . Power Chain Reactions 2 | . 2 . Alert | -11 -10 -10 ------- Run | Yrd Mat Sub Peak Influence 336 | . 336 . Initial . | . . . Average 158 | . 168 . Maximum Alert Level 1 | . 1 . Low Security (%) 79 | 100 77 . Level 1 20 | . 22 . Level 2 . | . . . Level 3 . | . . . Level 4 . | . . . Level 5 . | . . . High Security . | . . . Max Security . | . . . Squads Dispatched 2 | . 2 . Investigation 2 | . 2 . Extermination . | . . . Reinforcement . | . . . Assault . | . . . Garrison . | . . . Intercept . | . . . Searches Triggered . | . . . Construction Impeded . | . . . Haulers Reinforced . | . . . Active Scanning Responses . | . . . Cargo Convoy Interrupts . | . . . Stealth | -11 -10 -10 --------- Run | Yrd Mat Sub Distress Signals 1 | . 1 . Communications Jammed . | . . . Distress Signals . | . . . Times Spotted 35 | . 22 13 Peak Tracking Total 6 | . 4 6 Tactical Retreats 3 | . 2 1 Traps | -11 -10 -10 ------- Run | Yrd Mat Sub Traps Triggered 1 | . 1 . Indirectly . | . . . Trap Hack Attempts . | . . . Triggered . | . . . Disarmed . | . . . Reprogrammed . | . . . Reused . | . . . Traps Extracted . | . . . Installed . | . . . Triggered . | . . . Machines | -11 -10 -10 ---------- Run | Yrd Mat Sub Machines Disabled 2 | . 2 . Max in Single Turn 1 | . 1 . Machines Repaired . | . . . Machines Dismantled . | . . . Machines Sabotaged . | . . . Overloaded Fab Kills . | . . . Hacking | -11 -10 -10 --------- Run | Yrd Mat Sub Machines Accessed 6 | . 5 1 Terminals 4 | . 4 . Fabricators . | . . . Repair Stations . | . . . Recycling Units 1 | . 1 . Scanalyzers . | . . . Garrison Access . | . . . Total Hacks 15 | . 11 4 Successful 9 | . 5 4 Failed 6 | . 6 . Catastrophic 2 | . 2 . Database Lockouts . | . . . Manual 10 | . 10 . Terminals 10 | . 10 . Fabricators . | . . . Repair Stations . | . . . Recycling Units 1 | . 1 . Scanalyzers . | . . . Garrison Access . | . . . Terminal Hacks 5 | . 1 4 Record 4 | . . 4 Terminal Index 1 | . 1 . Fabricator Hacks . | . . . Repair Station Hacks . | . . . Recycling Unit Hacks 1 | . 1 . Report Inventory 1 | . 1 . Scanalyzer . | . . . Garrison Access Hacks . | . . . Unauthorized Hacks 3 | . 3 . Terminals 3 | . 3 . Botnet 3 | . 3 . Fabricators . | . . . Repair Stations . | . . . Recycling Units . | . . . Scanalyzers . | . . . Garrison Access . | . . . Data Cores Recovered . | . . . Used . | . . . Hacking Detections 4 | . 4 . Full Trace Events 1 | . 1 . Feedback Events . | . . . Feedback Blocked . | . . . Robot Schematics Acquired . | . . . Robots Built . | . . . Authchips . | . . . Time . | . . . Total Robot Build Rating . | . . . Part Schematics Acquired . | . . . Parts Built . | . . . Authchips . | . . . Time . | . . . Total Part Build Rating . | . . . Parts Repaired . | . . . Time . | . . . Parts Recycled . | . . . Recycled Matter . | . . . Retrieved Matter . | . . . Retrieved Components . | . . . Parts Scanalyzed . | . . . Part Schematics Acquired . | . . . Parts Damaged . | . . . Bothacking | -11 -10 -10 ------------ Run | Yrd Mat Sub Used RIF Installer . | . . . Robots Hacked . | . . . Non-combat . | . . . Combat . | . . . Robot Hacks Applied . | . . . Relay Couplers Released . | . . . Fabnet Peak Effective % . | . . . Robots Rewired . | . . . Allies Hacked . | . . . Hacks Repelled . | . . . Allies | -11 -10 -10 -------- Run | Yrd Mat Sub Total Allies . | . . . Largest Group . | . . . Highest-Rated Group . | . . . Highest-Rated Ally . | . . . Total Orders . | . . . Ally Attacks . | . . . Total Damage . | . . . Kills . | . . . Allies Corrupted . | . . . Allies Melted . | . . . Intel | -11 -10 -10 ------- Run | Yrd Mat Sub Robot Analysis Total . | . . . Derelict Logs Recovered . | . . . Drone Launches . | . . . Drone Recoveries . | . . . Exploration | -11 -10 -10 ------------- Run | Yrd Mat Sub Turns Passed 4661 | 59 971 3631 Spaces Moved 2406 | 36 488 1882 Core 13 | 12 1 . Treads 2393 | 24 487 1882 Legs . | . . . Wheels . | . . . Hover . | . . . Flight . | . . . Fastest Speed 50 | 50 160 160 Average Speed 177 | 131 161 181 Slowest Speed 350 | 160 350 240 Overloaded Moves . | . . . Propulsion Burnouts . | . . . Robots Hopped . | . . . Cave-ins Triggered . | . . . Exploration Rate (%) 52 | 4 71 82 Regions Visited 2 Branch Regions 1 Pre-discovered Areas 1 | . . 1 Known Exits Taken 1 | . 1 . Unknown Exits Taken 1 | 1 . . Scrap Searched 1 | . . 1 Spaces Dug . | . . . Terrain Destroyed 25 | . 25 . Melee . | . . . Projectile . | . . . AOE 25 | . 25 . Terrain Rammed . | . . . Walls Destroyed . | . . . Machines Disabled . | . . . Actions | -11 -10 -10 --------- Run | Yrd Mat Sub Total 2604 | 45 567 1992 Wait 4 | . 2 2 Move 2404 | 35 487 1882 Hop . | . . . Pick Up 29 | 4 7 18 Fast Attach 16 | 6 6 4 Attach 4 | . 1 3 Detach . | . . . Swap 7 | . 3 4 Drop 24 | . 7 17 Fire 111 | . 52 59 Melee . | . . . Ram . | . . . Kick . | . . . Crush 2 | . 2 . Escape Stasis . | . . . Rewire 3 | . . 3 Trap . | . . . Miscellaneous . | . . . Route ------- -11/Scrapyard -10/Materials (discovered 5 exits: *Mat x2 / *Min x2 / *Sub) -10/Subcaves (discovered 1 exit: *Mat) History --------- Turn | Location | Event 16 | -11/Scrapyard | Discovered new exit (range 16) 60 | -11/Scrapyard | Entered Materials 310 | -10/Materials | Build established: Mutant 563 | -10/Materials | Discovered new exit (range 5) 640 | -10/Materials | Discovered new exit (range 16) 683 | -10/Materials | Identified exit to Mines 709 | -10/Materials | System corruption reached 10% 727 | -10/Materials | Core integrity fell below 50% 905 | -10/Materials | Discovered new exit (range 4) 910 | -10/Materials | Identified exit to Materials 937 | -10/Materials | Discovered exit to Mines (range 15) 998 | -10/Materials | Discovered new exit (range 12) 1030 | -10/Materials | Identified exit to Subcaves 1031 | -10/Materials | Entered Subcaves 1616 | -10/Subcaves | Build established: Scavenger-Mutant 1815 | -10/Subcaves | Discovered new exit (range 15) 1832 | -10/Subcaves | Visited Clippyterm 1837 | -10/Subcaves | Learned Factory stockpile data 1837 | -10/Subcaves | Learned Factory garrison access intel 1857 | -10/Subcaves | Shifting Twisted Machinery released Sub. Monowheel 1895 | -10/Subcaves | Identified exit to Materials 1909 | -10/Subcaves | Shifting Twisted Machinery released Sub. Machine Gun 2388 | -10/Subcaves | Shifting Twisted Machinery released Battle Rifle 2401 | -10/Subcaves | Shifting Twisted Machinery released Mak. Flight Unit 2804 | -10/Subcaves | Build established: Mutant 2878 | -10/Subcaves | System corruption reached 30% 3137 | -10/Subcaves | A swath of the cavern ceiling suddenly collapsed 3179 | -10/Subcaves | Build established: Scavenger-Mutant 3588 | -10/Subcaves | Learned location of Zion (-7) 3588 | -10/Subcaves | Met a Zionite searching for "candidates" 3647 | -10/Subcaves | Disturbed a concealed Subdweller 3648 | -10/Subcaves | Core integrity fell below 20% 4527 | -10/Subcaves | Build established: Mutant 4662 | -10/Subcaves | Destroyed by S-10 Pest with Light Assault Rifle Last Messages --------------- 04416_ %E7NZ9AZW LFJL%G8U#=BSU5PNZWH9HEUV6F 04431_ System corrupted: Energy discharge (-54). 04453_ System corrupted: Matter fused (-5). 04470_ System corrupted: Substantial component data lost. 04488_ System corrupted: Energy discharge (-40). 04513_ System corrupted: Heat flow error (+183). 04524_ Subatomizers dissect the Sub. Laser. 04530_ JBWDC08GFDEYVDUUV7=IKA7 04536_ Subatomizers dissect the Sub. Laser. 04550_ System corrupted: Component data lost. 04566_ System corrupted: IFF burst signal emitted. 04582_ System corrupted: Component data lost. 04599_ System corrupted: Matter fused (-10). 04622_ Y>2HJ 59ZU8D,NUZI 04638_ System corrupted: Matter fused (-9). 04657_ System corrupted: Matter fused (-7). 04662_ System corrupted: Sub. Laser failed to cycle. Map ----- +----------------------------------------------------+ | ???###?????????# #??????????????????????????? | | ??## #######????# #??????????????????????????? | | ??# # # #???## # #??????????????????????????? | | ??# #???## # ##??????????????????????????? | | ??## # # #?### #??????????????????????????? | | ??## ### ###" ##???????????#######????????? | | ?## ## ##" % # #???????????#"""""#????????? | | ?# % ## #???????????#""X""#????????? | | # # ## # ## #???????????#" "#????????? | | # ####### # ##???????????### ###????????? | | # ##??#### # #####???????### ##?????????? | | # ##???# ###?????# ##########? | | ## ##????# #????## ## ## | | ?##??####### ##?### < | | ?????# ### ###### ### | | ?????# ### ## #### | | ###??# ## ####### | | # #??## #### ## #?# | | ##??## # ##??## ### #?# | | ##??# # # #????# ##?# ### | | #??# ## #### ## #????# ##### | | ##?# #### #?## #????###?# # | | # ### ##??# #?# ##????????# # | | ## ####### ##?## ##?????????# & | | ?### #?# ####??## #??????????# | | ##?## ## #?????# @ #??????????## # # | | ##?# #??????# s ??????## ###### | | #?## #?????# ss t""???####????? | | #??#### ###???? # "#??????????? | | ##?????# ##?????## % ##? "#??????????? | | ##????### ##???##??## ##????"""???????????? | | ####### ###??## #???## #???????????????????? | | ## ###### #????#### ##???????????????????? | | ## ## ##????????##????????????????????? | | ## #???????????????????????????????? | | ######### #???????????????????????????????? | | #####???## #???????????????????????????????? | | ## #????## ##???????????????????????????????? | | #?????###????????????????????????????????? | | ###??###?????????????????????????????????? | | ### ##????????????????????????????????? | | ###??????????????????????????????? | | #??????????????????????????????? | | #??????????????????????????????? | | # #??????????????????????????????? | | ### #??????????????????????????????? | | ??## #??????????????????????????????? | | ???# #??????????????????????????????? | | ???## #??????????????????????????????? | | ????# ### ##??????????????????????????????? | +----------------------------------------------------+ Best States ------------- Heat Dissipation 25 Energy Generation 15 Energy Capacity 265 Matter Stores 300 Matter Capacity 300 Sight Range 16 Terrain Scan Density 10 Evasion (%) 40 Recoil Reduction 2 Item Schematics ----------------- None Robot Schematics ------------------ None Fabricated ------------ Nothing Alien Tech Used ----------------- None Achievements -------------- None Challenges ------------ None Game ------ Seed MakeshiftLaserDetonator Manual? 0 Play Time 00:32:50 Cumulative 16.6 hours Start 2024.12.31 @ 21:51:15 End 2024.12.31 @ 22:34:41 Sessions 1 Manual Loads 0 Difficulty Rogue Special Mode None Game No. 17 Rogue 17 Adventurer 0 Explorer 0 Win Type - Total 0 Types 0/0/0/0/0/0/0/0/0 Lore% 13 Gallery% 16 Achievement% 19 Wizard Run 0 Options --------- Layout 1 ASCII 0 Keyboard 0 Movement Mouse Keybinds 0 Fullscreen 2 Font 24/Smallcaps Map View 50x35 Zoom Use 0% Tactical HUD 1 Map Filters NONE Filters NONE Steam 1 RUN: 4a4b618d-f564-4f9a-ad1e-ae2963336306